Workbook

Sheet Profiel
C2: Project: | D2: Programmeren voor constructeurs | I2: Versie: | J2: 1.00
C3: Onderdeel: | D3: Gestapelde profielen
C4: Datum: | D4: 2020-02-19 | I4: Klik op logo Vullings Advies
B6: Voor alleen de dikte en breedte in
A7: Nr | B7: Dikte | C7: Breedte | D7: Breedte | E7: Splitsen | G7: Omtrek | H7: Oppervlak | I7: z | J7: I | K7: Profielnaam: | L7: Onbekend
B8: [mm] | C8: Onder [mm] | D8: Boven [mm] | E8: Afstand [mm] | G8: [mm] | H8: [mm2] | I8: [mm] | J8: [mm4]
A9: 1 | B9: 9 | C9: 160 | D9: 160 | G9: 338 | H9: 1440 | I9: 4.5 | J9: 9720 | AB9: 160
A10: 2 | B10: 152 | C10: 18 | D10: 18 | G10: 340 | H10: 2736 | I10: 76 | J10: 5267712 | AB10: 6
A11: 3 | B11: 9 | C11: 160 | D11: 160 | G11: 338 | H11: 1440 | I11: 4.5 | J11: 9720 | AB11: 160
A12: 4 | B12: 50 | C12: 45 | D12: 50 | G12: 195.124922 | H12: 2375 | I12: 25.43859649 | J12: 494334.7953 | AB12: 0
A13: 5 | AB13: 0
A14: 6 | AB14: 0
A15: 7 | AB15: 0
A16: 8 | AB16: 0
A17: 9 | AB17: 0
A18: 10 | AB18: 0
A19: 11 | AB19: 0
A20: 12 | AB20: 0
A21: 13 | AB21: 0
A22: 14 | AB22: 0
A23: 15 | AB23: 0

Sheet Profiel2
C2: Project: | D2: =Project -> Programmeren voor constructeurs | G2: Versie: | H2: =Versie -> 1.00
C3: Onderdeel: | D3: =Onderdeel -> Gestapelde profielen
C4: Datum: | D4: =Datum -> 2020-02-19 | G4: Klik op logo Vullings Advies om invoer te wissen
B6: Voor alleen de dikte en breedte in | J6: ok = onderkant profiel (lijn BB, zie figuur)
A7: Nr | B7: Dikte (h) | C7: Breedte (b) | D7: Breedte (a) | E7: Oi | F7: Ai | G7: zi | H7: Ii | J7: yok | K7: zi tov ok | L7: z-zi | M7: zi x Ai | N7: (z-zi)2 x Ai | O7: Ii | P7: O-b
C8: Onder [mm] | D8: Boven [mm] | E8: [mm] | F8: [mm2] | G8: [mm] | H8: [mm4] | J8: [mm] | K8: [mm] | L8: [mm] | M8: [mm3] | N8: [mm4] | O8: [mm4] | P8: [mm]
A9: 1 | B9: 9 | C9: 160 | D9: 160 | E9: =IF(ISBLANK(B9),"",2*SQRT(B9^2+((C9-D9)/2)^2)+C9+D9) -> 338 | F9: =IF(ISBLANK(B9),"",(B9*(C9+D9))/2) -> 1440 | G9: =IF(ISBLANK(B9),"",(B9*(2*D9+C9))/(3*(C9+D9))) -> 4.5 | H9: =IF(ISBLANK(B9),"",(B9^3*(D9^2+4*D9*C9+C9^2))/(36*(D9+C9))) -> 9720 | J9: =IF(ISBLANK(B9),"",0) -> 0 | K9: =IF(ISBLANK(B9),"",G9+J9) -> 4.5 | L9: =IF(ISBLANK(B9),"",$Q$24-K9) -> 103.6992837 | M9: =IF(ISBLANK(B9),"",F9*K9) -> 6480 | N9: =IF(ISBLANK(B9),"",L9^2*F9) -> 15485099.68 | O9: =IF(ISBLANK(B9),"",H9+N9) -> 15494819.68 | P9: =IF(ISBLANK(B9),"",0) -> 0
A10: 2 | B10: 152 | C10: 6 | D10: 6 | E10: =IF(ISBLANK(B10),"",2*SQRT(B10^2+((C10-D10)/2)^2)+C10+D10) -> 316 | F10: =IF(ISBLANK(B10),"",(B10*(C10+D10))/2) -> 912 | G10: =IF(ISBLANK(B10),"",(B10*(2*D10+C10))/(3*(C10+D10))) -> 76 | H10: =IF(ISBLANK(B10),"",(B10^3*(D10^2+4*D10*C10+C10^2))/(36*(D10+C10))) -> 1755904 | J10: =IF(ISBLANK(B10),"",J9+B9) -> 9 | K10: =IF(ISBLANK(B10),"",G10+J10) -> 85 | L10: 23.19928373 | M10: =IF(ISBLANK(B10),"",F10*K10) -> 77520 | N10: =IF(ISBLANK(B10),"",L10^2*F10) -> 490844.5702 | O10: =IF(ISBLANK(B10),"",H10+N10) -> 2246748.57 | P10: =IF(ISBLANK(B10),"",MIN(C10,D9)) -> 6
A11: 3 | B11: 9 | C11: 160 | D11: 160 | E11: 338 | F11: 1440 | G11: 4.5 | H11: 9720 | J11: =IF(ISBLANK(B11),"",J10+B10) -> 161 | K11: =IF(ISBLANK(B11),"",G11+J11) -> 165.5 | L11: -57.30071627 | M11: 238320 | N11: 4728055.802 | O11: 4737775.802 | P11: =IF(ISBLANK(B11),"",MIN(C11,D10)) -> 6
A12: 4 | B12: 25 | C12: 50 | D12: 45 | E12: 145.2493781 | F12: 1187.5 | G12: 12.28070175 | H12: 61791.84942 | J12: =IF(ISBLANK(B12),"",J11+B11) -> 170 | K12: =IF(ISBLANK(B12),"",G12+J12) -> 182.2807018 | L12: -74.08141802 | M12: 216458.3333 | N12: 6517067.09 | O12: 6578858.939 | P12: =IF(ISBLANK(B12),"",MIN(C12,D11)) -> 50
A13: 5 | J13: =IF(ISBLANK(B13),"",J12+B12) -> 
A14: 6
A15: 7 | S15: Samenvatting profiel | X15: Toelichting
A16: 8 | S16: hprof | T16: = | U16: =B24 -> 195 | V16: mm | X16: Deze tabel is opgesteld met alleen Excel formules
A17: 9 | S17: bprof | T17: = | U17: =C24 -> 160 | V17: mm | X17: Daarbij is gebruik gemaakt van bovenstaande formules
A18: 10 | S18: Oprof | T18: = | U18: =E24 -> 1013.249378 | V18: mm | X18: voor de bepaling van de profiel eigenschappen.
A19: 11 | S19: Aprof | T19: = | U19: =F24 -> 4979.5 | V19: mm2
A20: 12 | S20: Iprof | T20: = | U20: =O24 -> 29058202.99 | V20: mm4
A21: 13 | S21: zpprof | T21: = | U21: =Q24 -> 108.1992837 | V21: mm
A22: 14
A23: 15
B24: =SUM(B9:B23) -> 195 | C24: =MAX(C9:D23) -> 160 | E24: =SUM(E9:E23)-(P24*2) -> 1013.249378 | F24: =SUM(F9:F23) -> 4979.5 | M24: =SUM(M9:M23) -> 538778.3333 | N24: =SUM(N9:N23) -> 27221067.14 | O24: =SUM(O9:O23) -> 29058202.99 | P24: =SUM(P9:P23) -> 62 | Q24: =IF(F24<=0,"0",M24/F24) -> 108.1992837
B25: hprof | C25: bprof | E25: Oprof | F25: Aprof | O25: Iprof | P25: O-b | Q25: zpprof
B27: Tabel optie 2: gebruik van eigen functies
A29: Tabel optie 2 - let op: de invoer van bovenstaande tabel wordt automatisch overgenomen
A30: Nr | B30: Dikte (h) | C30: Breedte (b) | D30: Breedte (a) | E30: Oi | F30: Ai | G30: zi | H30: Ii
C31: Onder [mm] | D31: Boven [mm] | E31: [mm] | F31: [mm2] | G31: [mm] | H31: [mm4]
A32: 1 | B32: =IF(ISBLANK(B9),0,B9) -> 9 | C32: =IF(ISBLANK(C9),0,C9) -> 160 | D32: =IF(ISBLANK(D9),0,D9) -> 160 | E32: =IF(B32=0,"",GeomI(B32,C32,D32,"O")) -> 338 | F32: =IF(B32=0,"",GeomI(B32,C32,D32,"A")) -> 1440 | G32: =IF(B32=0,"",GeomI(B32,C32,D32,"z")) -> 4.5 | H32: =IF(B32=0,"",GeomI(B32,C32,D32,"I")) -> 9720
A33: 2 | B33: =IF(ISBLANK(B10),0,B10) -> 152 | C33: 6 | D33: 6 | E33: =IF(B33=0,"",GeomI(B33,C33,D33,"O")) -> 316 | F33: =IF(B33=0,"",GeomI(B33,C33,D33,"A")) -> 912 | G33: =IF(B33=0,"",GeomI(B33,C33,D33,"z")) -> 76 | H33: =IF(B33=0,"",GeomI(B33,C33,D33,"I")) -> 1755904 | S33: Samenvatting profiel | X33: Toelichting
A34: 3 | B34: =IF(ISBLANK(B11),0,B11) -> 9 | C34: 160 | D34: 160 | E34: 338 | F34: 1440 | G34: 4.5 | H34: 9720 | S34: hprof | T34: = | U34: =B47 -> 195 | V34: mm | X34: Deze tabel is opgesteld met alleen eigen VBA formules
A35: 4 | B35: =IF(ISBLANK(B12),0,B12) -> 25 | C35: 50 | D35: 45 | E35: 145.2493781 | F35: 1187.5 | G35: 12.28070175 | H35: 61791.84942 | S35: bprof | T35: = | U35: =C47 -> 160 | V35: mm | X35: Daarbij is gebruik gemaakt van bovenstaande formules
A36: 5 | B36: =IF(ISBLANK(B13),0,B13) -> 0 | C36: 0 | D36: 0 | S36: Oprof | T36: = | U36: =GeomProf(DikteLijst,BreedteOnderLijst,BreedteBovenLijst,"O") -> 1013.249378 | V36: mm | X36: voor de bepaling van de profiel eigenschappen.
A37: 6 | B37: =IF(ISBLANK(B14),0,B14) -> 0 | C37: 0 | D37: 0 | S37: Aprof | T37: = | U37: =GeomProf(DikteLijst,BreedteOnderLijst,BreedteBovenLijst,"A") -> 4979.5 | V37: mm2 | X37: Zie VBA module "Profiel2"
A38: 7 | B38: =IF(ISBLANK(B15),0,B15) -> 0 | C38: 0 | D38: 0 | S38: Iprof | T38: = | U38: =GeomProf(DikteLijst,BreedteOnderLijst,BreedteBovenLijst,"I") -> 29058202.99 | V38: mm4
A39: 8 | B39: =IF(ISBLANK(B16),0,B16) -> 0 | C39: 0 | D39: 0 | S39: zpprof | T39: = | U39: =GeomProf(DikteLijst,BreedteOnderLijst,BreedteBovenLijst,"Z") -> 108.1992837 | V39: mm
A40: 9 | B40: =IF(ISBLANK(B17),0,B17) -> 0 | C40: 0 | D40: 0
A41: 10 | B41: =IF(ISBLANK(B18),0,B18) -> 0 | C41: 0 | D41: 0 | S41: De eigen formules zijn opgesplitst in formules speciaal voor de eigenschappen van de afzonderlijke
A42: 11 | B42: =IF(ISBLANK(B19),0,B19) -> 0 | C42: 0 | D42: 0 | S42: onderdelen en er zijn aparte formules voor de eigenschappen voor het profiel als geheel.
A43: 12 | B43: =IF(ISBLANK(B20),0,B20) -> 0 | C43: 0 | D43: 0 | S43: Beide type eigen functies maken gebruik van gezamenlijke eigen gemaakte functies.
A44: 13 | B44: =IF(ISBLANK(B21),0,B21) -> 0 | C44: 0 | D44: 0 | S44: De eigen functies laten zien dat met formules het mogelijk is om de profieleigenschappen direct te bepalen.
A45: 14 | B45: =IF(ISBLANK(B22),0,B22) -> 0 | C45: 0 | D45: 0 | S45: Er is maar 1 formule voor nodig. Dit maakt de formuleringen in de cellen een stuk compacter en overzichtelijker.
A46: 15 | B46: =IF(ISBLANK(B23),0,B23) -> 0 | C46: 0 | D46: 0 | S46: Ook kunnen deze formules prima worden gecombineerd met Excel formules. Ze kunnen ook in 1 cel
B47: =SUM(B32:B46) -> 195 | C47: =MAX(C32:D46) -> 160 | S47: samen gebruikt worden. Er wordt geen verschil gemaakt tussen Excel formules en eigen formules.
B48: hprof | C48: bprof | S48: Vergelijk de cellen van de twee tabellen en berekeningen met elkaar om het verschil goed te zien.
S49: Het is ook mogelijk om een bibliotheek eigen formules op te stellen.

Sheet Toelichting
C2: Project: | D2: =Project -> Programmeren voor constructeurs | G2: Versie: | H2: =Versie -> 1.00
C3: Onderdeel: | D3: =Onderdeel -> Gestapelde profielen
C4: Datum: | D4: =Datum -> 2020-02-19
B7: Toelichting
B10: Gestapelde profielen | V10: Gestapelde profielen
B11: In gestapelde profielen worden enkele geometrische profiel eigenschappen bepaald zoals | V11: Toegepaste formules voor de verschillende berekeningen. Het gaat om de basis vormen: driehoek,
B12: de omtrek, oppervlak, zwaartepunt en kwadratisch oppervlaktemoment (traagheidsmoment). | V12: rechthoek en trapezium.
B13: Het gewenste profiel is opgebouwd uit een drietal basis vormen die op elkaar worden gestapeld.
B14: De basis vormen zijn een rechthoek, driehoek en trapezium.
B15: Van de basis vormen moet de dikte (hoogte) worden ingevoerd, de breedte onder en de breedte boven.
B16: De overige gegevens worden automatisch berekend. Het resultaat wordt naast de invoer weergegeven
B17: in een eenvoudige grafische voorstelling van het gestapelde profiel. Alle afzonderlijke onderdelen zijn
B18: weergegeven in een andere kleur. In dit geval kunnen er maixmaal 15 basis vormen op elkaar worden
B19: gestapeld.
B21: In dit Excel document zijn er twee verschillende manieren gebruikt om de berekeningen uit te voeren.
B22: In werkblad "Profiel" wordt alles met behulp van VBA gedaan, inclusief de invoer met behulp van een invoerformulier.
B23: In werkblad "Profiel2" wordt alles met behulp van Excel en VBA in de vorm van eigen functies.
B25: Werkblad "Profiel" - tab "Profiel" | V25: Werkblad "Profiel2"
B26: Door op het logo te klikken wordt een VBa menu gestart waarin de invoerwaarden van het werkblad wordt gelezen | V26: Op werkblad "Profiel2" zijn twee gelijke tabellen opgenomen met profiel gegevens. De eerste tabel
B27: en worden automatisch alle profielgrootheden berekend. De invoerwaarden kunnen in het formulier verder worden | V27: is een tabel zoals die normaal in Excel worden uitgewerkt. Met Excel functies worden dezelfde geometrische
B28: bewerkt. Dit kan ook samen worden gebruikt door de invoer te wijzigen in het werkblad zelf. De berekeningen worden | V28: eigenschappen berekend.
B29: gedaan op het moment dat op de knop "Lees" wordt geklikt. De informatie op het werkblad "Profiel" wordt opnieuw | V29: In de tweede tabel zijn dezelfde berkeningen uitgewerkt, maar nu met eigen functies (zie VBA module "Mod_Profiel2")
B30: gelezen waarbij alle gegevens in het formulier worden overscherven. | V30: er kan een vergelijk worden gemaakt tussen de 3 verschillende manieren om berekeningen uit te voeren.
B31: Als er wijzgingen in de invoer worden aangebracht via het invoerformulier, kunnen deze gegevens terug op het werkblad | V31: 1) Gebruik van alleen maar VBA en formulieren.
B32: worden geplaatst door op de knop "Schrijf" te klikken. Dan worden alle invoerwaarden op het werkblad overschreven. | V32: 2) Gebruik van eigen functies en Excel functies samen.
B33: Onderdeel van het uitvoeren van de berekeningen is het genereren van een tekening van het profiel. Dit wordt automatisch | V33: 3) Gebruik van alleen Excel functies.
B34: gedaan op het moment dat het profiel wordt berekend. Een herberekening wordt altijd uitgevoerd zodra er in het formulier een
B35: wijziging in de invoerdate wordt aangebracht. | V35: Een vergelijk zal de voor iedereen de voor- en nadelen van de verschillende methoden zichtbaar maken.
B36: Wijzigingen kunnen worden aangebracht door: | V36: Enkele verschillen zijn ook weergegeven op werkblad "Profiel2" zelf.
B37: 1) Voer een nieuwe basis vorm toe door een nieuw "profiel onderdeel" toe te voegen met de knop "Toevoegen".
B38: 2) Selecteer een profiel onderdeel (basis vorm) uit de lijst en wijzig deze met de knop "Vervangen".
B39: 3) "Reset" verwijderd alle gegevens uit het formulier en kan een geheel nieuw profiel worden samengesteld.
B40: 4) Met de pijl knoppen kan het geselecteerde onderdeel (basis vorm) worden gewijzigd van locatie.
B41: 5) Met de knop "Archiveer" wordt het profiel opgeslagen op het werkblad "Archief". Tevens wordt een
B42: grafische preview (JPG) van het profiel opgeslagen op de hardeschijf.
B44: Werkblad "Profiel" - tab "Archief"
B45: Als in voorgaande tab "Profiel" op de knop "Archief" wordt geklikt wordt het profiel opgeslagen op werkblad "Archief".
B46: Het nieuwe profiel wordt automatisch aan de lijst toegevoegd. Er wordt ook een preview gemaakt en opgeslagen op de
B47: hardeschijf. De betreffende directory is aangegeven op het formulier en kan naar wens worden gewijzigd. Hou er rekening mee
B48: dat de verwijzingen naar de betreffende previews ook in de archieflijst worden opgeslagen (de laatste kolom). Indien de directorie
B49: wordt gewijzigd op het formulier wordt dit niet gedaan in de archieflijst. De "oude" previews blijven op de "oude" locatie op de
B50: hardeschijf staan.
B52: Maak een selectie van het gewenste profiel in de lijst. De preview van het geselecteerde profiel wordt zichtbaar.
B53: Klik op de knop "formulier" en de gegevens van de geselecteerde profiel worden opgenomen in het formulier "Profiel".
B54: De oude gegevens worden allen overschreven. Ook wordt er een nieuwe berekening uitgevoerd. De gegevens op het werkblad
B55: worden niet aangepast.
B56: Klik op de knop "Formulier & werkblad" gebeurd er hetzelfde als bij "formulier", maar de gegevens worden nu ook in het werkblad
B57: verwerkt. Alle oude gegevens worden ook hier overschreven.
B63: Let op
B64: Als er een profiel uit het archief wordt geselecteerd wordt de preview ook op het werkblad "Profiel" weergegeven.
B65: Dit kan ongedaan worden gemaakt door het formulier opnieuw te openen en te sluiten.
B66: Een mogelijke optimalisatie is het herstel van dit ongemak.

Sheet Archief
C2: Project: | F2: =Project -> Programmeren voor constructeurs | M2: Versie: | O2: =Versie -> 1.00
C3: Onderdeel: | F3: =Onderdeel -> Gestapelde profielen
C4: Datum: | F4: =Datum -> 2020-02-19
A6: ARCHIEF | C6: Profielonderdelen | BL6: Einde
A7: Nr | B7: Profielnaam | C7: 1 | G7: =C7+1 -> 2 | K7: =G7+1 -> 3 | O7: =K7+1 -> 4 | S7: =O7+1 -> 5 | W7: =S7+1 -> 6 | AA7: =W7+1 -> 7 | AE7: =AA7+1 -> 8 | AI7: =AE7+1 -> 9 | AM7: =AI7+1 -> 10 | AQ7: =AM7+1 -> 11 | AU7: =AQ7+1 -> 12 | AY7: =AU7+1 -> 13 | BC7: =AY7+1 -> 14 | BG7: =BC7+1 -> 15 | BK7: Preview | BL7: Tabel
C8: Dikte | D8: BO | E8: BB | F8: Afst | G8: Dikte | H8: BO | I8: BB | J8: Afst | K8: Dikte | L8: BO | M8: BB | N8: Afst | O8: Dikte | P8: BO | Q8: BB | R8: Afst | S8: Dikte | T8: BO | U8: BB | V8: Afst | W8: Dikte | X8: BO | Y8: BB | Z8: Afst | AA8: Dikte | AB8: BO | AC8: BB | AD8: Afst | AE8: Dikte | AF8: BO | AG8: BB | AH8: Afst | AI8: Dikte | AJ8: BO | AK8: BB | AL8: Afst | AM8: Dikte | AN8: BO | AO8: BB | AP8: Afst | AQ8: Dikte | AR8: BO | AS8: BB | AT8: Afst | AU8: Dikte | AV8: BO | AW8: BB | AX8: Afst | AY8: Dikte | AZ8: BO | BA8: BB | BB8: Afst | BC8: Dikte | BD8: BO | BE8: BB | BF8: Afst | BG8: Dikte | BH8: BO | BI8: BB | BJ8: Afst | BK8: Locatie JPG's van preview eigen profiel | BL8: END
A51: Einde tabel - Meer profielen in het archief, dan constante "MaxProfInArchief" in VBA module "Algemeen" aanpassen

Sheet Hulp
C2: Project: | D2: =Project -> Programmeren voor constructeurs | G2: Versie: | H2: =Versie -> 1.00
C3: Onderdeel: | D3: =Onderdeel -> Gestapelde profielen
C4: Datum: | D4: =Datum -> 2020-02-19 | G4: Klik op logo voor formulier Fonts
D7: Font | E7: Font | F7: Font | G7: Font | H7: Font | M7: Teken+font | N7: Teken+font | O7: Teken+font | P7: Teken+font | Q7: Teken+font
C8: ASCII | D8: Wingdings | E8: Wingdings 2 | F8: Wingdings 2 | G8: Symbol | H8: MT Extra | J8: Nr | K8: Teken | M8: Wingdings | N8: Wingdings 2 | O8: Wingdings 3 | P8: Symbol | Q8: MT Extra
C9: 0 | D9: 0 | E9: 0 | F9: 0 | G9: 0 | H9: 0 | J9: 1 | K9: =CHAR(J9) ->  | M9: =CHAR(J9) ->  | N9: =CHAR(J9) ->  | O9: =CHAR(J9) ->  | P9: =CHAR(J9) ->  | Q9: =CHAR(J9) -> 
C10: 1 | D10: 1 | E10: 1 | F10: 1 | G10: 1 | H10: 1 | J10: 2 | K10: =CHAR(J10) ->  | M10: =CHAR(J10) ->  | N10: =CHAR(J10) ->  | O10: =CHAR(J10) ->  | P10: =CHAR(J10) ->  | Q10: =CHAR(J10) -> 
C11: 2 | D11: 2 | E11: 2 | F11: 2 | G11: 2 | H11: 2 | J11: 3 | K11:  | M11:  | N11:  | O11:  | P11:  | Q11: 
C12: 3 | D12: 3 | E12: 3 | F12: 3 | G12: 3 | H12: 3 | J12: 4 | K12:  | M12:  | N12:  | O12:  | P12:  | Q12: 
C13: 4 | D13: 4 | E13: 4 | F13: 4 | G13: 4 | H13: 4 | J13: 5 | K13:  | M13:  | N13:  | O13:  | P13:  | Q13: 
C14: 5 | D14: 5 | E14: 5 | F14: 5 | G14: 5 | H14: 5 | J14: 6 | K14:  | M14:  | N14:  | O14:  | P14:  | Q14: 
C15: 6 | D15: 6 | E15: 6 | F15: 6 | G15: 6 | H15: 6 | J15: 7 | K15:  | M15:  | N15:  | O15:  | P15:  | Q15: 
C16: 7 | D16: 7 | E16: 7 | F16: 7 | G16: 7 | H16: 7 | J16: 8 | K16:  | M16:  | N16:  | O16:  | P16:  | Q16: 
C17: 8 | D17: 8 | E17: 8 | F17: 8 | G17: 8 | H17: 8 | J17: 9
C18: 9 | D18: 9 | E18: 9 | F18: 9 | G18: 9 | H18: 9 | J18: 10 | L18: 10
C19: a | D19: a | E19: a | F19: a | G19: a | H19: a | J19: 11
C20: b | D20: b | E20: b | F20: b | G20: b | H20: b | J20: 12
C21: c | D21: c | E21: c | F21: c | G21: c | H21: c | J21: 13
C22: d | D22: d | E22: d | F22: d | G22: d | H22: d | J22: 14 | K22:  | M22:  | N22:  | O22:  | P22:  | Q22: 
C23: e | D23: e | E23: e | F23: e | G23: e | H23: e | J23: 15 | K23:  | M23:  | N23:  | O23:  | P23:  | Q23: 
C24: f | D24: f | E24: f | F24: f | G24: f | H24: f | J24: 16 | K24:  | M24:  | N24:  | O24:  | P24:  | Q24: 
C25: g | D25: g | E25: g | F25: g | G25: g | H25: g | J25: 17 | K25:  | M25:  | N25:  | O25:  | P25:  | Q25: 
C26: h | D26: h | E26: h | F26: h | G26: h | H26: h | J26: 18 | K26:  | M26:  | N26:  | O26:  | P26:  | Q26: 
C27: i | D27: i | E27: i | F27: i | G27: i | H27: i | J27: 19 | K27:  | M27:  | N27:  | O27:  | P27:  | Q27: 
C28: j | D28: j | E28: j | F28: j | G28: j | H28: j | J28: 20 | K28:  | L28: 20 | M28:  | N28:  | O28:  | P28:  | Q28: 
C29: k | D29: k | E29: k | F29: k | G29: k | H29: k | J29: 21 | K29:  | M29:  | N29:  | O29:  | P29:  | Q29: 
C30: l | D30: l | E30: l | F30: l | G30: l | H30: l | J30: 22 | K30:  | M30:  | N30:  | O30:  | P30:  | Q30: 
C31: m | D31: m | E31: m | F31: m | G31: m | H31: m | J31: 23 | K31:  | M31:  | N31:  | O31:  | P31:  | Q31: 
C32: n | D32: n | E32: n | F32: n | G32: n | H32: n | J32: 24 | K32:  | M32:  | N32:  | O32:  | P32:  | Q32: 
C33: o | D33: o | E33: o | F33: o | G33: o | H33: o | J33: 25 | K33:  | M33:  | N33:  | O33:  | P33:  | Q33: 
C34: p | D34: p | E34: p | F34: p | G34: p | H34: p | J34: 26 | K34:  | M34:  | N34:  | O34:  | P34:  | Q34: 
C35: q | D35: q | E35: q | F35: q | G35: q | H35: q | J35: 27 | K35:  | M35:  | N35:  | O35:  | P35:  | Q35: 
C36: r | D36: r | E36: r | F36: r | G36: r | H36: r | J36: 28
C37: s | D37: s | E37: s | F37: s | G37: s | H37: s | J37: 29
C38: t | D38: t | E38: t | F38: t | G38: t | H38: t | J38: 30 | L38: 30
C39: u | D39: u | E39: u | F39: u | G39: u | H39: u | J39: 31
C40: v | D40: v | E40: v | F40: v | G40: v | H40: v | J40: 32
C41: w | D41: w | E41: w | F41: w | G41: w | H41: w | J41: 33 | K41: ! | M41: ! | N41: ! | O41: ! | P41: ! | Q41: !
C42: x | D42: x | E42: x | F42: x | G42: x | H42: x | J42: 34 | K42: " | M42: " | N42: " | O42: " | P42: " | Q42: "
C43: y | D43: y | E43: y | F43: y | G43: y | H43: y | J43: 35 | K43: # | M43: # | N43: # | O43: # | P43: # | Q43: #
C44: z | D44: z | E44: z | F44: z | G44: z | H44: z | J44: 36 | K44: $ | M44: $ | N44: $ | O44: $ | P44: $ | Q44: $
C45: A | D45: A | E45: A | F45: A | G45: A | H45: A | J45: 37 | K45: % | M45: % | N45: % | O45: % | P45: % | Q45: %
C46: B | D46: B | E46: B | F46: B | G46: B | H46: B | J46: 38 | K46: & | M46: & | N46: & | O46: & | P46: & | Q46: &
C47: C | D47: C | E47: C | F47: C | G47: C | H47: C | J47: 39 | K47: ' | M47: ' | N47: ' | O47: ' | P47: ' | Q47: '
C48: D | D48: D | E48: D | F48: D | G48: D | H48: D | J48: 40 | K48: ( | L48: 40 | M48: ( | N48: ( | O48: ( | P48: ( | Q48: (
C49: E | D49: E | E49: E | F49: E | G49: E | H49: E | J49: 41 | K49: ) | M49: ) | N49: ) | O49: ) | P49: ) | Q49: )
C50: F | D50: F | E50: F | F50: F | G50: F | H50: F | J50: 42 | K50: * | M50: * | N50: * | O50: * | P50: * | Q50: *
C51: G | D51: G | E51: G | F51: G | G51: G | H51: G | J51: 43 | K51: + | M51: + | N51: + | O51: + | P51: + | Q51: +
C52: H | D52: H | E52: H | F52: H | G52: H | H52: H | J52: 44 | K52: , | M52: , | N52: , | O52: , | P52: , | Q52: ,
C53: I | D53: I | E53: I | F53: I | G53: I | H53: I | J53: 45 | K53: - | M53: - | N53: - | O53: - | P53: - | Q53: -
C54: J | D54: J | E54: J | F54: J | G54: J | H54: J | J54: 46 | K54: . | M54: . | N54: . | O54: . | P54: . | Q54: .
C55: K | D55: K | E55: K | F55: K | G55: K | H55: K | J55: 47 | K55: / | M55: / | N55: / | O55: / | P55: / | Q55: /
C56: L | D56: L | E56: L | F56: L | G56: L | H56: L | J56: 48 | K56: 0 | M56: 0 | N56: 0 | O56: 0 | P56: 0 | Q56: 0
C57: M | D57: M | E57: M | F57: M | G57: M | H57: M | J57: 49 | K57: 1 | M57: 1 | N57: 1 | O57: 1 | P57: 1 | Q57: 1
C58: N | D58: N | E58: N | F58: N | G58: N | H58: N | J58: 50 | K58: 2 | L58: 50 | M58: 2 | N58: 2 | O58: 2 | P58: 2 | Q58: 2
C59: O | D59: O | E59: O | F59: O | G59: O | H59: O | J59: 51 | K59: 3 | M59: 3 | N59: 3 | O59: 3 | P59: 3 | Q59: 3
C60: P | D60: P | E60: P | F60: P | G60: P | H60: P | J60: 52 | K60: 4 | M60: 4 | N60: 4 | O60: 4 | P60: 4 | Q60: 4
C61: Q | D61: Q | E61: Q | F61: Q | G61: Q | H61: Q | J61: 53 | K61: 5 | M61: 5 | N61: 5 | O61: 5 | P61: 5 | Q61: 5
C62: R | D62: R | E62: R | F62: R | G62: R | H62: R | J62: 54 | K62: 6 | M62: 6 | N62: 6 | O62: 6 | P62: 6 | Q62: 6
C63: S | D63: S | E63: S | F63: S | G63: S | H63: S | J63: 55 | K63: 7 | M63: 7 | N63: 7 | O63: 7 | P63: 7 | Q63: 7
C64: T | D64: T | E64: T | F64: T | G64: T | H64: T | J64: 56 | K64: 8 | M64: 8 | N64: 8 | O64: 8 | P64: 8 | Q64: 8
C65: U | D65: U | E65: U | F65: U | G65: U | H65: U | J65: 57 | K65: 9 | M65: 9 | N65: 9 | O65: 9 | P65: 9 | Q65: 9
C66: V | D66: V | E66: V | F66: V | G66: V | H66: V | J66: 58 | K66: : | M66: : | N66: : | O66: : | P66: : | Q66: :
C67: W | D67: W | E67: W | F67: W | G67: W | H67: W | J67: 59 | K67: ; | M67: ; | N67: ; | O67: ; | P67: ; | Q67: ;
C68: X | D68: X | E68: X | F68: X | G68: X | H68: X | J68: 60 | K68: < | L68: 60 | M68: < | N68: < | O68: < | P68: < | Q68: <
C69: Y | D69: Y | E69: Y | F69: Y | G69: Y | H69: Y | J69: 61 | K69: = | M69: = | N69: = | O69: = | P69: = | Q69: =
C70: Z | D70: Z | E70: Z | F70: Z | G70: Z | H70: Z | J70: 62 | K70: > | M70: > | N70: > | O70: > | P70: > | Q70: >
C71: ! | D71: ! | E71: ! | F71: ! | G71: ! | H71: ! | J71: 63 | K71: ? | M71: ? | N71: ? | O71: ? | P71: ? | Q71: ?
C72: @ | D72: @ | E72: @ | F72: @ | G72: @ | H72: @ | J72: 64 | K72: @ | M72: @ | N72: @ | O72: @ | P72: @ | Q72: @
C73: # | D73: # | E73: # | F73: # | G73: # | H73: # | J73: 65 | K73: A | M73: A | N73: A | O73: A | P73: A | Q73: A
C74: % | D74: % | E74: % | F74: % | G74: % | H74: % | J74: 66 | K74: =CHAR(J74) -> B | M74: =CHAR(J74) -> B | N74: =CHAR(J74) -> B | O74: =CHAR(J74) -> B | P74: =CHAR(J74) -> B | Q74: =CHAR(J74) -> B
C75: ^ | D75: ^ | E75: ^ | F75: ^ | G75: ^ | H75: ^ | J75: 67 | K75: C | M75: C | N75: C | O75: C | P75: C | Q75: C
C76: & | D76: & | E76: & | F76: & | G76: & | H76: & | J76: 68 | K76: D | M76: D | N76: D | O76: D | P76: D | Q76: D
C77: ( | D77: ( | E77: ( | F77: ( | G77: ( | H77: ( | J77: 69 | K77: E | M77: E | N77: E | O77: E | P77: E | Q77: E
C78: ) | D78: ) | E78: ) | F78: ) | G78: ) | H78: ) | J78: 70 | K78: F | L78: 70 | M78: F | N78: F | O78: F | P78: F | Q78: F
C79: _ | D79: _ | E79: _ | F79: _ | G79: _ | H79: _ | J79: 71 | K79: G | M79: G | N79: G | O79: G | P79: G | Q79: G
C80: - | D80: - | E80: - | F80: - | G80: - | H80: - | J80: 72 | K80: H | M80: H | N80: H | O80: H | P80: H | Q80: H
C81: + | D81: + | E81: + | F81: + | G81: + | H81: + | J81: 73 | K81: I | M81: I | N81: I | O81: I | P81: I | Q81: I
C82: = | D82: = | E82: = | F82: = | G82: = | H82: = | J82: 74 | K82: J | M82: J | N82: J | O82: J | P82: J | Q82: J
C83: | | D83: | | E83: | | F83: | | G83: | | H83: | | J83: 75 | K83: K | M83: K | N83: K | O83: K | P83: K | Q83: K
C84: \ | D84: \ | E84: \ | F84: \ | G84: \ | H84: \ | J84: 76 | K84: L | M84: L | N84: L | O84: L | P84: L | Q84: L
C85: ? | D85: ? | E85: ? | F85: ? | G85: ? | H85: ? | J85: 77 | K85: M | M85: M | N85: M | O85: M | P85: M | Q85: M
C86: < | D86: < | E86: < | F86: < | G86: < | H86: < | J86: 78 | K86: N | M86: N | N86: N | O86: N | P86: N | Q86: N
C87: > | D87: > | E87: > | F87: > | G87: > | H87: > | J87: 79 | K87: O | M87: O | N87: O | O87: O | P87: O | Q87: O
C88: . | D88: . | E88: . | F88: . | G88: . | H88: . | J88: 80 | K88: P | L88: 80 | M88: P | N88: P | O88: P | P88: P | Q88: P
C89: , | D89: , | E89: , | F89: , | G89: , | H89: , | J89: 81 | K89: Q | M89: Q | N89: Q | O89: Q | P89: Q | Q89: Q
J90: 82 | K90: R | M90: R | N90: R | O90: R | P90: R | Q90: R
J91: 83 | K91: S | M91: S | N91: S | O91: S | P91: S | Q91: S
J92: 84 | K92: T | M92: T | N92: T | O92: T | P92: T | Q92: T
J93: 85 | K93: U | M93: U | N93: U | O93: U | P93: U | Q93: U
J94: 86 | K94: V | M94: V | N94: V | O94: V | P94: V | Q94: V
J95: 87 | K95: W | M95: W | N95: W | O95: W | P95: W | Q95: W
J96: 88 | K96: X | M96: X | N96: X | O96: X | P96: X | Q96: X
J97: 89 | K97: Y | M97: Y | N97: Y | O97: Y | P97: Y | Q97: Y
J98: 90 | K98: Z | L98: 90 | M98: Z | N98: Z | O98: Z | P98: Z | Q98: Z
J99: 91 | K99: [ | M99: [ | N99: [ | O99: [ | P99: [ | Q99: [
J100: 92 | K100: \ | M100: \ | N100: \ | O100: \ | P100: \ | Q100: \
J101: 93 | K101: ] | M101: ] | N101: ] | O101: ] | P101: ] | Q101: ]
J102: 94 | K102: ^ | M102: ^ | N102: ^ | O102: ^ | P102: ^ | Q102: ^
J103: 95 | K103: _ | M103: _ | N103: _ | O103: _ | P103: _ | Q103: _
J104: 96 | K104: ` | M104: ` | N104: ` | O104: ` | P104: ` | Q104: `
J105: 97 | K105: a | M105: a | N105: a | O105: a | P105: a | Q105: a
J106: 98 | K106: b | M106: b | N106: b | O106: b | P106: b | Q106: b
J107: 99 | K107: c | M107: c | N107: c | O107: c | P107: c | Q107: c
J108: 100 | K108: d | L108: 100 | M108: d | N108: d | O108: d | P108: d | Q108: d
J109: 101 | K109: e | M109: e | N109: e | O109: e | P109: e | Q109: e
J110: 102 | K110: f | M110: f | N110: f | O110: f | P110: f | Q110: f
J111: 103 | K111: g | M111: g | N111: g | O111: g | P111: g | Q111: g
J112: 104 | K112: h | M112: h | N112: h | O112: h | P112: h | Q112: h
J113: 105 | K113: i | M113: i | N113: i | O113: i | P113: i | Q113: i
J114: 106 | K114: j | M114: j | N114: j | O114: j | P114: j | Q114: j
J115: 107 | K115: k | M115: k | N115: k | O115: k | P115: k | Q115: k
J116: 108 | K116: l | M116: l | N116: l | O116: l | P116: l | Q116: l
J117: 109 | K117: m | M117: m | N117: m | O117: m | P117: m | Q117: m
J118: 110 | K118: n | L118: 110 | M118: n | N118: n | O118: n | P118: n | Q118: n
J119: 111 | K119: o | M119: o | N119: o | O119: o | P119: o | Q119: o
J120: 112 | K120: p | M120: p | N120: p | O120: p | P120: p | Q120: p
J121: 113 | K121: q | M121: q | N121: q | O121: q | P121: q | Q121: q
J122: 114 | K122: r | M122: r | N122: r | O122: r | P122: r | Q122: r
J123: 115 | K123: s | M123: s | N123: s | O123: s | P123: s | Q123: s
J124: 116 | K124: t | M124: t | N124: t | O124: t | P124: t | Q124: t
J125: 117 | K125: u | M125: u | N125: u | O125: u | P125: u | Q125: u
J126: 118 | K126: v | M126: v | N126: v | O126: v | P126: v | Q126: v
J127: 119 | K127: w | M127: w | N127: w | O127: w | P127: w | Q127: w
J128: 120 | K128: x | L128: 120 | M128: x | N128: x | O128: x | P128: x | Q128: x
J129: 121 | K129: y | M129: y | N129: y | O129: y | P129: y | Q129: y
J130: 122 | K130: z | M130: z | N130: z | O130: z | P130: z | Q130: z
J131: 123 | K131: { | M131: { | N131: { | O131: { | P131: { | Q131: {
J132: 124 | K132: | | M132: | | N132: | | O132: | | P132: | | Q132: |
J133: 125 | K133: } | M133: } | N133: } | O133: } | P133: } | Q133: }
J134: 126 | K134: ~ | M134: ~ | N134: ~ | O134: ~ | P134: ~ | Q134: ~
J135: 127 | K135:  | M135:  | N135:  | O135:  | P135:  | Q135: 
J136: 128 | K136: € | M136: € | N136: € | O136: € | P136: € | Q136: €
J137: 129 | K137:  | M137:  | N137:  | O137:  | P137:  | Q137: 
J138: 130 | K138: =CHAR(J138) -> ‚ | L138: 130 | M138: =CHAR(J138) -> ‚ | N138: =CHAR(J138) -> ‚ | O138: =CHAR(J138) -> ‚ | P138: =CHAR(J138) -> ‚ | Q138: =CHAR(J138) -> ‚
J139: 131 | K139: ƒ | M139: ƒ | N139: ƒ | O139: ƒ | P139: ƒ | Q139: ƒ
J140: 132 | K140: „ | M140: „ | N140: „ | O140: „ | P140: „ | Q140: „
J141: 133 | K141: … | M141: … | N141: … | O141: … | P141: … | Q141: …
J142: 134 | K142: † | M142: † | N142: † | O142: † | P142: † | Q142: †
J143: 135 | K143: ‡ | M143: ‡ | N143: ‡ | O143: ‡ | P143: ‡ | Q143: ‡
J144: 136 | K144: ˆ | M144: ˆ | N144: ˆ | O144: ˆ | P144: ˆ | Q144: ˆ
J145: 137 | K145: ‰ | M145: ‰ | N145: ‰ | O145: ‰ | P145: ‰ | Q145: ‰
J146: 138 | K146: Š | M146: Š | N146: Š | O146: Š | P146: Š | Q146: Š
J147: 139 | K147: ‹ | M147: ‹ | N147: ‹ | O147: ‹ | P147: ‹ | Q147: ‹
J148: 140 | K148: Œ | L148: 140 | M148: Œ | N148: Œ | O148: Œ | P148: Œ | Q148: Œ
J149: 141 | K149:  | M149:  | N149:  | O149:  | P149:  | Q149: 
J150: 142 | K150: Ž | M150: Ž | N150: Ž | O150: Ž | P150: Ž | Q150: Ž
J151: 143 | K151:  | M151:  | N151:  | O151:  | P151:  | Q151: 
J152: 144 | K152:  | M152:  | N152:  | O152:  | P152:  | Q152: 
J153: 145 | K153: ‘ | M153: ‘ | N153: ‘ | O153: ‘ | P153: ‘ | Q153: ‘
J154: 146 | K154: ’ | M154: ’ | N154: ’ | O154: ’ | P154: ’ | Q154: ’
J155: 147 | K155: “ | M155: “ | N155: “ | O155: “ | P155: “ | Q155: “
J156: 148 | K156: ” | M156: ” | N156: ” | O156: ” | P156: ” | Q156: ”
J157: 149 | K157: • | M157: • | N157: • | O157: • | P157: • | Q157: •
J158: 150 | K158: – | L158: 150 | M158: – | N158: – | O158: – | P158: – | Q158: –
J159: 151 | K159: — | M159: — | N159: — | O159: — | P159: — | Q159: —
J160: 152 | K160: ˜ | M160: ˜ | N160: ˜ | O160: ˜ | P160: ˜ | Q160: ˜
J161: 153 | K161: ™ | M161: ™ | N161: ™ | O161: ™ | P161: ™ | Q161: ™
J162: 154 | K162: š | M162: š | N162: š | O162: š | P162: š | Q162: š
J163: 155 | K163: › | M163: › | N163: › | O163: › | P163: › | Q163: ›
J164: 156 | K164: œ | M164: œ | N164: œ | O164: œ | P164: œ | Q164: œ
J165: 157 | K165:  | M165:  | N165:  | O165:  | P165:  | Q165: 
J166: 158 | K166: ž | M166: ž | N166: ž | O166: ž | P166: ž | Q166: ž
J167: 159 | K167: Ÿ | M167: Ÿ | N167: Ÿ | O167: Ÿ | P167: Ÿ | Q167: Ÿ
J168: 160 | L168: 160
J169: 161 | K169: ¡ | M169: ¡ | N169: ¡ | O169: ¡ | P169: ¡ | Q169: ¡
J170: 162 | K170: ¢ | M170: ¢ | N170: ¢ | O170: ¢ | P170: ¢ | Q170: ¢
J171: 163 | K171: £ | M171: £ | N171: £ | O171: £ | P171: £ | Q171: £
J172: 164 | K172: ¤ | M172: ¤ | N172: ¤ | O172: ¤ | P172: ¤ | Q172: ¤
J173: 165 | K173: ¥ | M173: ¥ | N173: ¥ | O173: ¥ | P173: ¥ | Q173: ¥
J174: 166 | K174: ¦ | M174: ¦ | N174: ¦ | O174: ¦ | P174: ¦ | Q174: ¦
J175: 167 | K175: § | M175: § | N175: § | O175: § | P175: § | Q175: §
J176: 168 | K176: ¨ | M176: ¨ | N176: ¨ | O176: ¨ | P176: ¨ | Q176: ¨
J177: 169 | K177: © | M177: © | N177: © | O177: © | P177: © | Q177: ©
J178: 170 | K178: ª | L178: 170 | M178: ª | N178: ª | O178: ª | P178: ª | Q178: ª
J179: 171 | K179: « | M179: « | N179: « | O179: « | P179: « | Q179: «
J180: 172 | K180: ¬ | M180: ¬ | N180: ¬ | O180: ¬ | P180: ¬ | Q180: ¬
J181: 173 | K181: ­ | M181: ­ | N181: ­ | O181: ­ | P181: ­ | Q181: ­
J182: 174 | K182: ® | M182: ® | N182: ® | O182: ® | P182: ® | Q182: ®
J183: 175 | K183: ¯ | M183: ¯ | N183: ¯ | O183: ¯ | P183: ¯ | Q183: ¯
J184: 176 | K184: ° | M184: ° | N184: ° | O184: ° | P184: ° | Q184: °
J185: 177 | K185: ± | M185: ± | N185: ± | O185: ± | P185: ± | Q185: ±
J186: 178 | K186: ² | M186: ² | N186: ² | O186: ² | P186: ² | Q186: ²
J187: 179 | K187: ³ | M187: ³ | N187: ³ | O187: ³ | P187: ³ | Q187: ³
J188: 180 | K188: ´ | L188: 180 | M188: ´ | N188: ´ | O188: ´ | P188: ´ | Q188: ´
J189: 181 | K189: µ | M189: µ | N189: µ | O189: µ | P189: µ | Q189: µ
J190: 182 | K190: ¶ | M190: ¶ | N190: ¶ | O190: ¶ | P190: ¶ | Q190: ¶
J191: 183 | K191: · | M191: · | N191: · | O191: · | P191: · | Q191: ·
J192: 184 | K192: ¸ | M192: ¸ | N192: ¸ | O192: ¸ | P192: ¸ | Q192: ¸
J193: 185 | K193: ¹ | M193: ¹ | N193: ¹ | O193: ¹ | P193: ¹ | Q193: ¹
J194: 186 | K194: º | M194: º | N194: º | O194: º | P194: º | Q194: º
J195: 187 | K195: » | M195: » | N195: » | O195: » | P195: » | Q195: »
J196: 188 | K196: ¼ | M196: ¼ | N196: ¼ | O196: ¼ | P196: ¼ | Q196: ¼
J197: 189 | K197: ½ | M197: ½ | N197: ½ | O197: ½ | P197: ½ | Q197: ½
J198: 190 | K198: ¾ | L198: 190 | M198: ¾ | N198: ¾ | O198: ¾ | P198: ¾ | Q198: ¾
J199: 191 | K199: ¿ | M199: ¿ | N199: ¿ | O199: ¿ | P199: ¿ | Q199: ¿
J200: 192 | K200: À | M200: À | N200: À | O200: À | P200: À | Q200: À
J201: 193 | K201: Á | M201: Á | N201: Á | O201: Á | P201: Á | Q201: Á
J202: 194 | K202: =CHAR(J202) -> Â | M202: =CHAR(J202) -> Â | N202: =CHAR(J202) -> Â | O202: =CHAR(J202) -> Â | P202: =CHAR(J202) -> Â | Q202: =CHAR(J202) -> Â
J203: 195 | K203: Ã | M203: Ã | N203: Ã | O203: Ã | P203: Ã | Q203: Ã
... 60 more rows
